Cogmind - Beta 14 @@@ ROGUE MODE // 2024.11.11 @ 23:42:45 Player: Hinzy Result: Destroyed by H-77 Assassin with Coil Gun Performance ------------- Evolutions (7) 3500 Regions Visited (12) 2400 Robots Destroyed (129) 645 Value Destroyed (4381) 4381 Prototype IDs (25) 500 Alien Tech Used (2) 400 Bonus (-209) -209 TOTAL SCORE: 11617 Bonus ------- High Alert Combat Kills 16 Met Zhirov 300 Friendly Fire -525 Cogmind --------- Core Integrity 0/1300 Matter 208/300 Energy 36/100 System Corruption 15% Temperature Cool (0) Movement Core (100) Ox1 Location -3/Research Parts ------- > --- POWER (2) -------- (None) > --- PROPULSION (8) --- (None) > --- UTILITY (8) ------ Improved Signal Interpreter Improved Targeting Computer Core Analyzer Advanced Hacking Suite Advanced Component Analysis Suite > --- WEAPON (3) ------- Chainsword > --- INVENTORY (5) ---- High-powered Shock Rifle Peak State ------------ > --- POWER ------------ Reinforced Fission Core Fusion Reactor > --- PROPULSION ------- Armored Medium Treads Armored Medium Treads Armored Medium Treads Medium Armored Exoskeleton > --- UTILITY ---------- Advanced Power Amplifier Advanced Heat Sink Large Storage Unit Improved Signal Interpreter Core Analyzer Experimental Core Shielding Advanced Hacking Suite Advanced System Shield > --- WEAPON ----------- Quantum Rifle Heavy Phase Cannon Gauss Rifle > --- INVENTORY -------- Light Angular Momentum Engine Light Fission Core Precision Matter Filter Weapon Cycler Advanced ECM Suite Improved Thermal Defense Suite Improved Shock Absorption System Advanced Shield Generator Point Defense Array Integrated Dissipator Gauss Rifle [Rating: 114] Favorites ----------- Power Light Antimatter Reactor Engine Light Ion Engine Power Core Reinforced Fission Core Reactor Light Antimatter Reactor Propulsion Armored Medium Treads Treads Armored Medium Treads Leg Enhanced Armored Leg Wheel Compact Wheel Hover Unit Aerolev Unit Flight Unit Xenon Bombardment Thruster Utility Improved Signal Interpreter Device Advanced Heat Sink Storage Large Storage Unit Processor Improved Signal Interpreter Hackware Advanced Hacking Suite Protection Propulsion Shielding Weapon Heavy Phase Cannon Energy Gun Cooled Plasma Rifle Energy Cannon Heavy Phase Cannon Ballistic Gun Assault Rifle Ballistic Cannon Linear Accelerator Launcher Improved Grenade Launcher Special Weapon Improved Remote Datajack Impact Weapon Power Maul Slashing Weapon Power Sword Special Melee Weapon Datajack Build | -11 -10 -9 -8 -7 -6 -5 -4 -4 -4 -4 -3 -3 ------- Run | Yrd Mat Mat Mat Fac Fac Fac Fac Upp Upp Zhi Pro Res Slots Evolved 14 | . . 2 2 2 2 2 2 . . . . 2 Power 1 | . . . . . 1 . . . . . . . Propulsion 6 | . . . 2 1 . 1 . . . . . 2 Utility 6 | . . 2 . 1 1 . 2 . . . . . Weapon 1 | . . . . . . 1 . . . . . . Parts Attached 254 | 8 32 28 12 26 16 50 10 8 9 6 16 33 Power 36 | 1 4 4 1 5 2 7 3 . 1 1 3 4 Engine 21 | 1 4 4 1 5 . 3 1 . . . 1 1 Core 8 | . . . . . 2 4 . . 1 . 1 . Reactor 7 | . . . . . . . 2 . . 1 1 3 Propulsion 64 | 2 8 6 3 7 4 14 . 1 4 . 5 10 Treads 13 | . 2 . . 2 . 1 . 1 4 . 2 1 Leg 21 | 2 2 1 1 . . 13 . . . . 2 . Wheel 19 | . 4 5 1 . 1 . . . . . 1 7 Hover 3 | . . . 1 . . . . . . . . 2 Flight 8 | . . . . 5 3 . . . . . . . Utility 90 | 2 6 9 3 11 6 20 4 5 3 5 4 12 Device 49 | 1 1 6 2 3 5 14 1 4 2 2 2 6 Storage 5 | 1 2 1 . . . 1 . . . . . . Processor 13 | . 1 1 . 2 1 3 2 . 1 . . 2 Hackware 6 | . . . . . . 2 1 1 . 1 1 . Protection 17 | . 2 1 1 6 . . . . . 2 1 4 Artifact . | . . . . . . . . . . . . . Weapon 64 | 3 14 9 5 3 4 9 3 2 1 . 4 7 Energy Gun 29 | 2 4 7 1 1 2 4 2 1 1 . 2 2 Energy Cannon 5 | . . . . . . 3 . 1 . . . 1 Ballistic Gun 9 | 1 4 . 2 . . . . . . . 2 . Ballistic Cannon 2 | . . . . . . 1 . . . . . 1 Launcher 3 | . . 1 1 1 . . . . . . . . Special Weapon 9 | . 6 . . . . 1 1 . . . . 1 Impact Weapon 2 | . . . . 1 1 . . . . . . . Slashing Weapon 2 | . . . . . 1 . . . . . . 1 Piercing Weapon . | . . . . . . . . . . . . . Special Melee Weapon 3 | . . 1 1 . . . . . . . . 1 Unidentified Prototypes 13 | . . 2 1 . . 3 1 . . 4 1 1 Corrupted Parts 2 | . . . . 1 . . . 1 . . . . System Corruption 12 | . . . . 8 . . . 4 . . . . Parts Lost 61 | . 2 3 2 1 2 9 . 1 4 . 14 23 Power 9 | . 1 . . 1 . 1 . . 1 . 2 3 Propulsion 18 | . . 2 1 . 2 1 . . 1 . 2 9 Utility 23 | . 1 1 1 . . 4 . 1 1 . 6 8 Weapon 11 | . . . . . . 3 . . 1 . 4 3 Highest Loss Streak 21 | . 2 1 1 1 2 7 . 1 4 . 9 21 To Critical Strikes 2 | . . . . . . 1 . . . . 1 . Average Slot Usage (%) 87 | . 98 96 91 98 96 88 88 87 86 92 62 57 Engine 4 | . 13 10 9 7 . . 3 . . . . . Core 3 | . . . . . 11 9 1 . 2 5 3 . Reactor 2 | . . . . . . . 4 10 7 5 3 1 Treads 4 | . 1 . . 9 2 . 5 6 16 26 10 2 Leg 8 | . 12 . 12 . . 21 15 13 5 . 2 . Wheel 5 | . 14 20 13 . 3 . . . . . . 8 Flight 4 | . . . . 26 25 3 . . . . . . Device 12 | . 7 19 11 14 11 15 19 15 12 10 8 3 Storage 6 | . 8 11 9 7 6 5 5 5 5 5 3 . Processor 9 | . 5 10 5 3 12 6 10 13 13 13 10 17 Hackware 2 | . . . . . . 3 4 5 5 7 6 6 Protection 3 | . 5 1 8 10 6 . . . . 2 3 1 Energy Gun 8 | . 14 20 3 2 5 8 4 5 7 10 4 . Energy Cannon 2 | . . . . . . 4 5 5 5 5 2 2 Ballistic Gun 2 | . 9 . 3 2 . . . . . . 2 . Special Weapon 1 | . 3 . . . . . 5 5 2 . . 1 Peak Build Rating 114 | 7 10 16 18 42 54 101 108 110 110 111 114 88 Average Rating 57 | 5 8 12 15 37 49 83 104 106 101 102 73 59 On Entrance 52 | . 7 10 10 17 41 54 96 105 110 101 111 18 Naked Turns . | . . . . . . . . . . . . . Heaviest Build 86 | 11 20 23 26 36 39 83 82 75 86 86 83 64 Greatest Support 136 | 20 40 26 32 46 40 110 90 90 136 136 136 100 Greatest Overweight (x) 5 | . . 5 1 1 1 2 . 1 1 . 2 3 Average Overweight (x) . | . . . . . . . . . . . . . Largest Inventory Capacity 25 | 8 10 25 10 10 10 15 15 15 15 15 15 5 Average Capacity 11 | 7 8 10 10 10 10 14 15 15 15 15 11 5 Most Carried 15 | 7 10 10 10 10 10 15 15 15 15 15 15 5 Average Carried 9 | 5 7 9 8 9 9 12 13 14 13 12 9 2 Final Capacity 15 | 8 10 10 10 10 10 15 15 15 15 15 5 5 Final Carried 15 | 7 10 10 9 10 10 12 13 14 11 15 5 1 Class Distribution -------------------- 25% | Mutant 22% | Scavenger-Mutant 17% | Gunner 6% | Scavenger-Assassin 6% | Tank 5% | Skirmisher 4% | Hacker-Gunner 3% | Scavenger-Gunner 3% | Scavenger-Skirmisher Dominant Class ---------------- Mutant | -10/Materials Scavenger-Mutant | -9/Materials Scavenger-Mutant | -8/Materials Scavenger-Mutant | -7/Factory Scavenger-Assassin | -6/Factory Skirmisher | -5/Factory Gunner | -4/Factory Gunner | -4/Upper Caves Tank | -4/Upper Caves Hacker-Gunner | -4/Zhirov Mutant | -3/Proximity Caves Hacker-Mutant | -3/Research Resources | -11 -10 -9 -8 -7 -6 -5 -4 -4 -4 -4 -3 -3 ----------- Run | Yrd Mat Mat Mat Fac Fac Fac Fac Upp Upp Zhi Pro Res Matter Collected 3945 | 280 770 260 270 436 170 585 114 60 131 . 429 440 Remotely . | . . . . . . . . . . . . . Salvage Created 4975 | 148 506 675 224 317 211 1483 119 354 205 . 269 464 Parts 261 | 19 28 56 8 23 18 52 6 14 5 . 15 17 Haulers Intercepted 3 | . . 1 . . . 2 . . . . . . Recyclers Shooed 7 | . 3 . . . . 1 . . . . . 3 Parts Field Recycled . | . . . . . . . . . . . . . Retrieved Matter . | . . . . . . . . . . . . . Parts Self-Destructed 26 | . . . . . . . . 8 5 . 13 . Prevented 8 | . . . . . . . . 8 . . . . Kills | -11 -10 -9 -8 -7 -6 -5 -4 -4 -4 -4 -3 -3 ------- Run | Yrd Mat Mat Mat Fac Fac Fac Fac Upp Upp Zhi Pro Res Combat Hostiles Destroyed 83 | . 11 18 5 5 3 22 2 4 3 . 7 3 Melee 4 | . . . . 1 2 . . . . . . 1 Guns 42 | . 11 16 1 1 . 7 . 1 . . 5 . Cannons 24 | . . . . . . 12 2 3 3 . 2 2 AOE 10 | . . 2 4 3 . 1 . . . . . . Classes Destroyed 19 | 1 5 5 . 1 2 2 . 1 . . 1 1 Worker 10 | . 1 1 . 3 2 2 . . . . . 1 Builder 6 | . . 1 . 3 . 1 . . . . . 1 Tunneler 7 | 7 . . . . . . . . . . . . Hauler 3 | . . 1 . . . 2 . . . . . . Recycler 6 | . 2 . . 1 . . . . . . . 3 Mechanic 1 | . . . . . . 1 . . . . . . Operator 2 | . . 2 . . . . . . . . . . Drone 2 | . . . . . . . . . . . 2 . Watcher 10 | . 2 1 1 . 1 5 . . . . . . Swarmer 16 | . 6 3 . . . 4 . . . . 3 . Cutter 1 | . . . . . 1 . . . . . . . Saboteur 1 | . . . . . . . . . . . . 1 Grunt 29 | . 5 10 2 4 . 8 . . . . . . Brawler 2 | . . 1 . . . . . 1 . . . . Duelist 1 | . . . . . . . . 1 . . . . Sentry 11 | . . 4 3 . . 1 . 2 1 . . . Hunter 11 | . . . . . 1 4 . . 2 . 2 2 Programmer 9 | . . . . 1 1 5 2 . . . . . Heavy 1 | . . . . . . 1 . . . . . . Best Kill Streak 11 | 4 4 5 5 7 2 11 2 2 1 . 2 7 Combat Bots Only 4 | . 3 3 4 3 1 4 2 2 1 . 2 1 Max Kills in Single Turn 4 | 2 2 2 1 4 1 2 1 1 1 . 1 1 Gunslinging 1 | . 1 . . . . . . . . . . . Exploded 2 | . . 1 1 2 . 1 . . . . . . Melee 1 | . . . . 1 1 . . . . . . 1 Uniques/NPCs Destroyed . | . . . . . . . . . . . . . Combat | -11 -10 -9 -8 -7 -6 -5 -4 -4 -4 -4 -3 -3 -------- Run | Yrd Mat Mat Mat Fac Fac Fac Fac Upp Upp Zhi Pro Res Hostile Shots Fired 1139 | . 66 64 31 45 33 236 2 47 68 . 142 405 Missed 372 | . 20 19 11 12 11 70 1 15 19 . 32 162 Damage Taken 13976 | . 712 583 294 581 296 3375 15 636 796 . 2871 3817 Core 3041 | . 108 132 14 116 53 350 . 74 75 . 811 1308 Absorbed by Shields 1180 | . . . . . . 318 5 167 32 . 114 544 Redirected to Shielding 279 | . 1 3 . 17 41 . . . . . 162 55 Ignored by Resistances 24 | . . . . . . . . . 24 . . . Regen/Repaired (Parts) 95 | . 45 32 . . . 18 . . . . . . Core Remaining (%) 71 | 100 56 67 97 83 93 65 . . . . 7 . Volleys Fired 445 | 13 88 47 21 17 21 116 4 13 14 . 38 53 Largest 3 | 2 2 2 2 1 1 3 2 2 3 . 3 1 Hottest 249 | 80 140 130 56 80 60 195 155 155 249 . 249 113 Shots Fired 697 | 26 131 83 23 18 21 200 6 26 31 . 79 53 Gun 461 | 26 106 81 14 8 21 108 2 13 17 . 62 3 Cannon 188 | . . . . . . 92 2 13 14 . 17 50 Launcher 21 | . . 2 9 10 . . . . . . . . Special 27 | . 25 . . . . . 2 . . . . . Kinetic 153 | . 56 . 8 3 . 11 . . . . 34 41 Thermal 423 | 26 75 55 . 5 . 168 2 13 28 . 39 12 Explosive 21 | . . 2 9 10 . . . . . . . . Electromagnetic 98 | . . 26 6 . 21 21 2 13 3 . 6 . Robot Hit Streak 16 | 10 5 16 16 8 7 13 1 8 5 . 7 14 Robot Miss Streak 11 | 3 8 7 2 5 1 11 1 2 3 . 4 6 Penetration Max 1 | . . . . . . . . . . . 1 . Secondary Targets 3 | . 2 1 . . . . . . . . . . Max Gunslinging Chain 1 | . 1 1 . . . . . . . . . . Shots Hit Robots 442 | 17 67 69 20 13 20 120 3 20 20 . 38 35 Core Hits 284 | 7 30 84 13 27 7 62 2 11 7 . 19 15 Critical Kills 1 | . 1 . . . . . . . . . . . Critical Parts Destroyed . | . . . . . . . . . . . . . Critical Strikes 13 | . 1 . . . 1 7 . 1 . . . 3 Burn 7 | . . . . . . 7 . . . . . . Destroy 1 | . 1 . . . . . . . . . . . Blast 2 | . . . . . . . . . . . . 2 Corrupt 1 | . . . . . . . . 1 . . . . Sever 2 | . . . . . 1 . . . . . . 1 Melee Attacks 34 | . . 3 2 13 8 . . . . . . 8 Impact 14 | . . . . 13 1 . . . . . . . Slashing 12 | . . . . . 7 . . . . . . 5 Piercing . | . . . . . . . . . . . . . Sneak Attacks 9 | . . 3 2 . 1 . . . . . . 3 Combat Hostiles 1 | . . . . . 1 . . . . . . . Follow-up Attacks . | . . . . . . . . . . . . . Damage Inflicted 12954 | 201 826 1047 476 1358 624 5028 84 539 618 . 945 1208 Guns 5858 | 201 816 899 170 91 342 2005 . 232 270 . 771 61 Cannons 3921 | . . . . . . 1940 84 307 348 . 174 1068 Explosions 2452 | . . 146 306 954 . 1046 . . . . . . Melee 659 | . . . . 313 282 . . . . . . 64 Ramming 64 | . 10 2 . . . 37 . . . . . 15 Kinetic 2142 | . 464 . 93 25 . 209 . . . . 436 915 Thermal 7293 | 201 352 649 . 66 . 4379 84 307 576 . 465 214 Explosive 1209 | . . 102 306 801 . . . . . . . . Electromagnetic 1587 | . . 294 77 153 342 403 . 232 42 . 44 . Impact 434 | . . . . 313 121 . . . . . . . Slashing 225 | . . . . . 161 . . . . . . 64 Piercing . | . . . . . . . . . . . . . Highest Corruption 16 | . 6 . . 16 2 1 . 5 5 5 5 15 Average Corruption 5 | . 6 . . 10 1 1 . 1 5 5 5 8 Corruption Purged . | . . . . . . . . . . . . . Corruption Blocked . | . . . . . . . . . . . . . Effects 134 | . 46 . . 33 2 5 . 3 9 10 24 2 Message Errors 33 | . 9 . . 9 . 1 . 2 . 4 7 1 Matter Fused 35 | . 10 . . 8 . 2 . 1 5 2 7 . Heat Flow Errors 15 | . 7 . . 4 1 1 . . . . 2 . Energy Discharges 14 | . 5 . . 4 . . . . 1 2 2 . Parts Rejected 4 | . 2 . . 1 . . . . 1 . . . Data Loss (minor) 13 | . 5 . . 2 1 . . . 1 1 2 1 Data Loss (major) 9 | . 5 . . 3 . . . . . 1 . . Misfires 5 | . 2 . . 1 . . . . . . 2 . Alerts 3 | . . . . 1 . . . . 1 . 1 . Weapon Failures 3 | . 1 . . . . 1 . . . . 1 . Overload Shots 2 | . . . . . . 2 . . . . . . Overflow Damage 388 | . . 3 . 155 2 130 . . 33 . 6 59 Projectiles 137 | . . . . . . 39 . . 33 . 6 59 Explosions 135 | . . 3 . 47 . 85 . . . . . . Melee 116 | . . . . 108 2 6 . . . . . . Knockbacks 18 | . 1 . . 1 . 6 . . . . . 10 Impact 3 | . 1 . . 1 . . . . . . . 1 Kinetic 15 | . . . . . . 6 . . . . . 9 Secondary . | . . . . . . . . . . . . . Self-Inflicted Damage 305 | . 3 56 . 88 . 152 . . . . . 6 Shots 8 | . . 2 . 3 . 3 . . . . . . Rammed 9 | . 5 1 . . . . . . . . . 3 Targets Rammed 11 | . 5 1 . . . 2 . . . . . 3 Kicked 2 | . . . . . . 2 . . . . . . Crushed . | . . . . . . . . . . . . . Highest Temperature 646 | 54 268 212 25 253 198 380 21 162 389 . 646 262 Average Temperature 94 | 23 74 36 10 122 24 89 14 58 191 . 260 57 Received Heat Transfer 1129 | . 153 198 117 27 . 377 . 109 24 . 87 37 Effects 23 | . 3 . . . . 3 . . 3 . 14 . Shutdowns 9 | . . . . . . . . . 2 . 7 . Energy Bleed 2 | . . . . . . 1 . . . . 1 . Interference 5 | . 3 . . . . 1 . . . . 1 . Matter Decay 1 | . . . . . . . . . . . 1 . Short Circuit 1 | . . . . . . . . . . . 1 . Damage (minor) 3 | . . . . . . 1 . . 1 . 1 . Damage (core) 2 | . . . . . . . . . . . 2 . Siege Activations . | . . . . . . . . . . . . . Robots Corrupted 4 | . . . . 1 1 2 . . . . . . Combat Hostiles 1 | . . . . . 1 . . . . . . . Parts Fried 10 | . . . . . 3 5 . 2 . . . . Impact Corruptions 7 | . . . . 6 . 1 . . . . . . Robots Melted 2 | . . . . . . 2 . . . . . . Combat Hostiles 2 | . . . . . . 2 . . . . . . Parts Melted 24 | 1 1 . . . 2 16 . . 2 . 2 . Heat Transferred 10659 | 450 760 865 . 150 . 6584 74 333 666 . 555 222 Parts Sabotaged 4 | . . . . . . . . . . . . 4 Parts Stolen . | . . . . . . . . . . . . . Parts Stripped . | . . . . . . . . . . . . . Power Chain Reactions 4 | . . 1 . 2 . 1 . . . . . . Alert | -11 -10 -9 -8 -7 -6 -5 -4 -4 -4 -4 -3 -3 ------- Run | Yrd Mat Mat Mat Fac Fac Fac Fac Upp Upp Zhi Pro Res Peak Influence 480 | 35 225 370 378 226 104 441 270 . . . . 480 Initial 480 | . 22 36 156 80 34 20 215 . . . . 480 Average 141 | 9 73 193 264 112 55 121 217 . . . . 330 Maximum Alert Level 2 | . 1 1 1 1 . 2 1 . . . . 2 Low Security (%) 74 | 100 95 49 51 95 100 86 2 . . . . 15 Level 1 21 | . 4 50 48 4 . 8 97 . . . . 50 Level 2 4 | . . . . . . 5 . . . . . 33 Level 3 . | . . . . . . . . . . . . . Level 4 . | . . . . . . . . . . . . . Level 5 . | . . . . . . . . . . . . . High Security . | . . . . . . . . . . . . . Max Security . | . . . . . . . . . . . . . Squads Dispatched 31 | . 1 1 1 6 1 17 1 . . . . 3 Investigation 8 | . 1 1 . 1 . 5 . . . . . . Extermination 6 | . . . . 1 1 2 1 . . . . 1 Reinforcement 13 | . . . . 4 . 7 . . . . . 2 Assault . | . . . . . . . . . . . . . Garrison 4 | . . . 1 . . 3 . . . . . . Intercept . | . . . . . . . . . . . . . Searches Triggered 1 | . . . . . . . . . . . . 1 Construction Impeded 5 | . . . . 2 . 2 . . . . . 1 Haulers Reinforced 3 | . . . . 1 . 1 . . . . . 1 Active Scanning Responses . | . . . . . . . . . . . . . Cargo Convoy Interrupts 1 | . . . . . . . . . . . . 1 Stealth | -11 -10 -9 -8 -7 -6 -5 -4 -4 -4 -4 -3 -3 --------- Run | Yrd Mat Mat Mat Fac Fac Fac Fac Upp Upp Zhi Pro Res Distress Signals 14 | . 1 4 3 1 2 2 . . . . . 1 Communications Jammed . | . . . . . . . . . . . . . Distress Signals . | . . . . . . . . . . . . . Times Spotted 162 | . 19 29 7 14 10 31 2 10 3 . 17 20 Peak Tracking Total 14 | . 4 6 5 3 3 7 1 6 2 . 5 14 Tactical Retreats 17 | . . 6 1 1 . . . 4 . . 3 2 Traps | -11 -10 -9 -8 -7 -6 -5 -4 -4 -4 -4 -3 -3 ------- Run | Yrd Mat Mat Mat Fac Fac Fac Fac Upp Upp Zhi Pro Res Traps Triggered 7 | . 1 2 . 2 . 2 . . . . . . Indirectly . | . . . . . . . . . . . . . Trap Hack Attempts . | . . . . . . . . . . . . . Triggered . | . . . . . . . . . . . . . Disarmed . | . . . . . . . . . . . . . Reprogrammed . | . . . . . . . . . . . . . Reused . | . . . . . . . . . . . . . Traps Extracted . | . . . . . . . . . . . . . Installed . | . . . . . . . . . . . . . Triggered 1 | . . . . . . . . . . . . 1 Machines | -11 -10 -9 -8 -7 -6 -5 -4 -4 -4 -4 -3 -3 ---------- Run | Yrd Mat Mat Mat Fac Fac Fac Fac Upp Upp Zhi Pro Res Machines Disabled 20 | . 1 . 1 6 1 10 . . . . . 1 Max in Single Turn 4 | . 1 . 1 3 1 4 . . . . . 1 Machines Repaired . | . . . . . . . . . . . . . Machines Dismantled . | . . . . . . . . . . . . . Machines Sabotaged . | . . . . . . . . . . . . . Overloaded Fab Kills . | . . . . . . . . . . . . . Hacking | -11 -10 -9 -8 -7 -6 -5 -4 -4 -4 -4 -3 -3 --------- Run | Yrd Mat Mat Mat Fac Fac Fac Fac Upp Upp Zhi Pro Res Machines Accessed 40 | . 9 5 2 1 1 9 1 . . 9 1 2 Terminals 25 | . 7 4 2 1 1 6 1 . . . 1 2 Fabricators 1 | . . . . . . 1 . . . . . . Repair Stations 3 | . 1 1 . . . 1 . . . . . . Recycling Units 1 | . 1 . . . . . . . . . . . Scanalyzers . | . . . . . . . . . . . . . Garrison Access 1 | . . . . . . 1 . . . . . . Total Hacks 144 | . 23 21 6 2 2 32 4 . . 48 1 5 Successful 101 | . 15 14 2 . 1 16 2 . . 48 1 2 Failed 42 | . 8 7 4 2 1 15 2 . . . . 3 Catastrophic 5 | . 1 . 2 . . 2 . . . . . . Database Lockouts 1 | . . . . . . 1 . . . . . . Manual 62 | . 20 14 3 . . 20 2 . . . 1 2 Terminals 75 | . 18 14 6 2 2 23 4 . . . 1 5 Fabricators 4 | . . . . . . 4 . . . . . . Repair Stations 12 | . 3 7 . . . 2 . . . . . . Recycling Units 2 | . 2 . . . . . . . . . . . Scanalyzers . | . . . . . . . . . . . . . Garrison Access 3 | . . . . . . 3 . . . . . . Terminal Hacks 62 | . . 1 1 . 1 8 1 . . 48 1 1 Record 43 | . . . . . . 6 . . . 36 1 . Part Schematic 4 | . . . . . . . . . . 4 . . Robot Analysis 5 | . . . . . . 1 . . . 4 . . Prototype ID Bank 6 | . . . . . 1 . 1 . . 4 . . Open DSF 1 | . . . . . . . . . . . . 1 Terminal Index 3 | . . 1 1 . . 1 . . . . . . Fabricator Hacks . | . . . . . . . . . . . . . Repair Station Hacks 10 | . 2 6 . . . 2 . . . . . . Scan Component 5 | . 1 3 . . . 1 . . . . . . Repair 5 | . 1 3 . . . 1 . . . . . . Recycling Unit Hacks 1 | . 1 . . . . . . . . . . . Report Inventory 1 | . 1 . . . . . . . . . . . Scanalyzer . | . . . . . . . . . . . . . Garrison Access Hacks 1 | . . . . . . 1 . . . . . . Coupler Status 1 | . . . . . . 1 . . . . . . Unauthorized Hacks 27 | . 12 7 1 . . 5 1 . . . . 1 Terminals 21 | . 10 7 1 . . 1 1 . . . . 1 Track 1 | . 1 . . . . . . . . . . . Assimilate 2 | . 2 . . . . . . . . . . . Botnet 8 | . 2 2 1 . . 1 1 . . . . 1 Disrupt 1 | . . 1 . . . . . . . . . . Operators 2 | . 1 1 . . . . . . . . . . Skim 7 | . 4 3 . . . . . . . . . . Fabricators 2 | . . . . . . 2 . . . . . . Liberate 1 | . . . . . . 1 . . . . . . Fabnet 1 | . . . . . . 1 . . . . . . Repair Stations 1 | . 1 . . . . . . . . . . . Mechanics 1 | . 1 . . . . . . . . . . . Recycling Units 1 | . 1 . . . . . . . . . . . Monitor 1 | . 1 . . . . . . . . . . . Scanalyzers . | . . . . . . . . . . . . . Garrison Access 2 | . . . . . . 2 . . . . . . Reprogram 1 | . . . . . . 1 . . . . . . Intercept 1 | . . . . . . 1 . . . . . . Data Cores Recovered 5 | . . 2 1 . 2 . . . . . . . Used . | . . . . . . . . . . . . . Hacking Detections 26 | . 6 4 2 1 1 9 1 . . . 1 1 Full Trace Events 6 | . 1 1 . . . 4 . . . . . . Feedback Events . | . . . . . . . . . . . . . Feedback Blocked . | . . . . . . . . . . . . . Robot Schematics Acquired . | . . . . . . . . . . . . . Robots Built . | . . . . . . . . . . . . . Authchips . | . . . . . . . . . . . . . Time . | . . . . . . . . . . . . . Total Robot Build Rating . | . . . . . . . . . . . . . Part Schematics Acquired 4 | . . . . . . . . . . 4 . . Parts Built . | . . . . . . . . . . . . . Authchips . | . . . . . . . . . . . . . Time . | . . . . . . . . . . . . . Total Part Build Rating . | . . . . . . . . . . . . . Parts Repaired 5 | . 1 3 . . . 1 . . . . . . Time 142 | . 26 78 . . . 38 . . . . . . Parts Recycled . | . . . . . . . . . . . . . Recycled Matter . | . . . . . . . . . . . . . Retrieved Matter . | . . . . . . . . . . . . . Retrieved Components . | . . . . . . . . . . . . . Parts Scanalyzed . | . . . . . . . . . . . . . Part Schematics Acquired . | . . . . . . . . . . . . . Parts Damaged . | . . . . . . . . . . . . . Bothacking | -11 -10 -9 -8 -7 -6 -5 -4 -4 -4 -4 -3 -3 ------------ Run | Yrd Mat Mat Mat Fac Fac Fac Fac Upp Upp Zhi Pro Res Used RIF Installer . | . . . . . . . . . . . . . Robots Hacked 3 | . . 1 1 . . . 1 . . . . . Non-combat 2 | . . 1 1 . . . . . . . . . Combat 1 | . . . . . . . 1 . . . . . Robot Hacks Applied 3 | . . 1 1 . . . 1 . . . . . parse_system 2 | . . . 1 . . . 1 . . . . . no_distress 1 | . . 1 . . . . . . . . . . Relay Couplers Released . | . . . . . . . . . . . . . Fabnet Peak Effective % 3 | . . . . . . . 3 3 3 3 1 1 Robots Rewired . | . . . . . . . . . . . . . Allies Hacked . | . . . . . . . . . . . . . Hacks Repelled . | . . . . . . . . . . . . . Allies | -11 -10 -9 -8 -7 -6 -5 -4 -4 -4 -4 -3 -3 -------- Run | Yrd Mat Mat Mat Fac Fac Fac Fac Upp Upp Zhi Pro Res Total Allies 5 | . . . . . . 5 . . . . . . Largest Group 3 | . . . . . . 3 . . . . . . Highest-Rated Group 87 | . . . . . . 87 . . . . . . Highest-Rated Ally 29 | . . . . . . 29 . . . . . . Total Orders . | . . . . . . . . . . . . . Ally Attacks 26 | . . . . . . 26 . . . . . . Total Damage 259 | . . . . . . 259 . . . . . . Kills 2 | . . . . . . 2 . . . . . . Allies Corrupted 1 | . . . . . . 1 . . . . . . Allies Melted . | . . . . . . . . . . . . . Intel | -11 -10 -9 -8 -7 -6 -5 -4 -4 -4 -4 -3 -3 ------- Run | Yrd Mat Mat Mat Fac Fac Fac Fac Upp Upp Zhi Pro Res Robot Analysis Total 5 | . . . . . . 1 . . . 4 . . Derelict Logs Recovered 3 | . . . . . . . . 2 1 . . . Drone Launches . | . . . . . . . . . . . . . Drone Recoveries . | . . . . . . . . . . . . . Exploration | -11 -10 -9 -8 -7 -6 -5 -4 -4 -4 -4 -3 -3 ------------- Run | Yrd Mat Mat Mat Fac Fac Fac Fac Upp Upp Zhi Pro Res Turns Passed 11438 | 267 1713 919 560 967 724 2174 412 1058 418 405 1085 736 Spaces Moved 7011 | 175 774 399 386 616 520 1295 287 725 233 232 887 482 Core 672 | 3 . 1 . . . . . . . . 464 204 Treads 1028 | . 23 . . 309 9 . . . 96 232 257 102 Legs 2665 | 172 224 2 . . . 1111 287 725 137 . 7 . Wheels 2152 | . 527 396 386 50 318 184 . . . . 159 132 Hover 45 | . . . . 1 . . . . . . . 44 Flight 449 | . . . . 256 193 . . . . . . . Fastest Speed 26 | 50 80 90 90 31 26 105 126 126 130 168 50 50 Average Speed 112 | 118 99 93 101 103 86 123 126 127 151 168 105 103 Slowest Speed 300 | 120 160 300 115 160 160 190 126 220 220 168 260 225 Overloaded Moves . | . . . . . . . . . . . . . Propulsion Burnouts . | . . . . . . . . . . . . . Robots Hopped 1 | . . . . 1 . . . . . . . . Cave-ins Triggered 1 | . 1 . . . . . . . . . . . Teleports 1 | . . . . . . . . . . 1 . . Exploration Rate (%) 37 | 7 92 24 26 19 13 23 5 81 43 62 82 12 Regions Visited 12 Branch Regions 4 Pre-discovered Areas 3 | . . . . . . . . . . 3 . . Known Exits Taken 5 | . . 1 . . 1 . . . 1 1 1 . Unknown Exits Taken 7 | 1 1 . 1 1 . 1 1 1 . . . . Scrap Searched 6 | . . . . . . . . 2 1 . 3 . Spaces Dug 29 | . 24 . . . . 2 . . . . . 3 Terrain Destroyed 244 | . 24 21 38 27 . 90 . 4 7 . 16 17 Melee 2 | . . . . . . . . . . . . 2 Projectile 88 | . 24 . . . . 22 . 4 7 . 16 15 AOE 154 | . . 21 38 27 . 68 . . . . . . Terrain Rammed . | . . . . . . . . . . . . . Walls Destroyed . | . . . . . . . . . . . . . Machines Disabled . | . . . . . . . . . . . . . Actions | -11 -10 -9 -8 -7 -6 -5 -4 -4 -4 -4 -3 -3 --------- Run | Yrd Mat Mat Mat Fac Fac Fac Fac Upp Upp Zhi Pro Res Total 9841 | 205 1533 863 531 908 761 1728 334 831 272 249 974 652 Wait 1768 | . 588 347 97 183 177 189 19 78 11 . 16 63 Move 6997 | 174 773 398 385 613 519 1294 286 724 232 231 886 482 Hop 1 | . . . . 1 . . . . . . . . Pick Up 140 | 8 23 18 8 23 6 32 6 2 2 5 3 4 Fast Attach 106 | 7 7 12 1 12 7 18 3 3 1 2 8 25 Attach 90 | 1 9 10 9 7 6 15 3 2 8 5 7 8 Detach 26 | 1 2 1 1 2 4 2 . 2 2 4 3 2 Swap 60 | . 16 6 2 7 3 17 4 3 . . 2 . Drop 162 | 1 22 20 5 30 10 42 9 4 2 2 11 4 Fire 445 | 13 88 47 21 17 21 116 4 13 14 . 38 53 Melee 34 | . . 3 2 13 8 . . . . . . 8 Ram 5 | . 1 1 . . . . . . . . . 3 Kick 2 | . . . . . . 2 . . . . . . Crush 4 | . 4 . . . . . . . . . . . Escape Stasis 1 | . . . . . . 1 . . . . . . Rewire . | . . . . . . . . . . . . . Trap . | . . . . . . . . . . . . . Miscellaneous . | . . . . . . . . . . . . . Route ------- -11/Scrapyard -10/Materials (discovered 4 exits: *Mat x3 / [*Min]) -9/Materials -8/Materials -7/Factory (discovered 3 exits: *Fac / [*Sto] / [*Low]) -6/Factory (discovered 2 exits: *Fac / [*Low]) -5/Factory -4/Factory -4/Upper Caves -4/Upper Caves -4/Zhirov -3/Proximity Caves -3/Research History --------- Turn | Location | Event 26 | -11/Scrapyard | Discovered new exit (range 16) 268 | -11/Scrapyard | Entered Materials 317 | -10/Materials | Build established: Mutant 490 | -10/Materials | Crushed by falling debris 533 | -10/Materials | Discovered new exit (range 7) 552 | -10/Materials | Repaired Aluminum Leg 1127 | -10/Materials | Discovered new exit (range 11) 1714 | -10/Materials | Discovered new exit (range 10) 1927 | -10/Materials | Discovered new exit (range 15) 1981 | -10/Materials | Entered another Materials area 1981 | -9/Materials | Evolved 2 slots: Utility x2 2288 | -9/Materials | Build established: Scavenger-Mutant 2648 | -9/Materials | Repaired Sensor Array 2674 | -9/Materials | Repaired Com. Wheel 2704 | -9/Materials | Repaired Sensor Array 2882 | -9/Materials | Discovered new exit (range 16) 2899 | -9/Materials | Identified exit to Materials 2900 | -9/Materials | Entered another Materials area 2900 | -8/Materials | Evolved 2 slots: Propulsion x2 3035 | -8/Materials | Garrison activated, responded to threat 3396 | -8/Materials | Met 7R-MNS 3440 | -8/Materials | Discovered new exit (range 14) 3460 | -8/Materials | Entered Factory 3460 | -7/Factory | Evolved 2 slots: Propulsion x1, Utility x1 3461 | -7/Factory | Caught up to 7R-MNS 3691 | -7/Factory | Discovered new exit (range 15) 3772 | -7/Factory | Discovered new exit (range 7) 4000 | -7/Factory | System corruption reached 10% 4408 | -7/Factory | Discovered new exit (range 11) 4427 | -7/Factory | Entered another Factory area 4427 | -6/Factory | Evolved 2 slots: Power x1, Utility x1 4428 | -6/Factory | Caught up to 7R-MNS 4751 | -6/Factory | Discovered new exit (range 5) 4966 | -6/Factory | Discovered new exit (range 10) 5004 | -6/Factory | Build established: Scavenger-Assassin 5150 | -6/Factory | Identified exit to Factory 5151 | -6/Factory | Entered another Factory area 5151 | -5/Factory | Evolved 2 slots: Propulsion x1, Weapon x1 5152 | -5/Factory | Caught up to 7R-MNS 5621 | -5/Factory | Garrison activated, responded to threat 5774 | -5/Factory | Repaired Recoil Stabilizer 5989 | -5/Factory | Build established: Scavenger-Skirmisher 5990 | -5/Factory | Central database locked down 6338 | -5/Factory | Build established: Skirmisher 7003 | -5/Factory | Build established: Gunner 7104 | -5/Factory | Lost 7 parts (1p3u3w) 7281 | -5/Factory | Discovered new exit (range 10) 7325 | -5/Factory | Entered another Factory area 7325 | -4/Factory | Evolved 2 slots: Utility x2 7672 | -4/Factory | Discovered new exit (range 5) 7737 | -4/Factory | Entered Upper Caves 7839 | -4/Upper Caves | Attracted the attention of an 0b10 checkpoint 7908 | -4/Upper Caves | Learned Research garrison access intel 8120 | -4/Upper Caves | Learned Research garrison access intel 8150 | -4/Upper Caves | Encountered a Warlord checkpoint 8280 | -4/Upper Caves | Found DCF Scrap (11 items) 8431 | -4/Upper Caves | Attracted the attention of an 0b10 outpost 8770 | -4/Upper Caves | Discovered new exit (range 4) 8795 | -4/Upper Caves | Entered another Upper Caves area 9056 | -4/Upper Caves | Lost 4 parts (1p1n1u1w) 9106 | -4/Upper Caves | Learned 4 Research zone layouts 9119 | -4/Upper Caves | Attracted the attention of an 0b10 checkpoint 9188 | -4/Upper Caves | Discovered new exit (range 15) 9210 | -4/Upper Caves | Identified exit to Zhirov 9213 | -4/Upper Caves | Entered Zhirov 9213 | -4/Zhirov | Discovered new exit (range 3) 9244 | -4/Zhirov | Met Zhirov 9294 | -4/Zhirov | Found Alien Artifact 9304 | -4/Zhirov | Identified Transdimensional Reconstructor 9304 | -4/Zhirov | Warped through subspace 9364 | -4/Zhirov | Learned location of Quarantine (-2) 9364 | -4/Zhirov | Learned location of Testing (-3) 9364 | -4/Zhirov | Learned location of Command (-1) 9394 | -4/Zhirov | Zhirov requested help retrieving the SGEMP Prototype 9504 | -4/Zhirov | Found Alien Artifact 9616 | -4/Zhirov | Identified exit to Proximity Caves 9618 | -4/Zhirov | Entered Proximity Caves 9621 | -3/Proximity Caves | Spotter reported a threat 9751 | -3/Proximity Caves | Build established: Hacker-Gunner 9816 | -3/Proximity Caves | Core integrity fell below 50% 9934 | -3/Proximity Caves | Spotter reported a threat 10079 | -3/Proximity Caves | Spotter reported a threat 10139 | -3/Proximity Caves | Lost 4 parts (2n1u1w) 10269 | -3/Proximity Caves | Attracted the attention of an 0b10 checkpoint 10305 | -3/Proximity Caves | Identified Integrated Dissipator 10305 | -3/Proximity Caves | Installed Integrated Dissipator, increased core heat dissipation (+20) 10340 | -3/Proximity Caves | Lost 9 parts (2p5u2w) 10590 | -3/Proximity Caves | Build established: Mutant 10692 | -3/Proximity Caves | Core integrity fell below 20% 10701 | -3/Proximity Caves | Discovered new exit (range 5) 10703 | -3/Proximity Caves | Identified exit to Research 10703 | -3/Proximity Caves | Entered Research 10703 | -3/Research | Evolved 2 slots: Propulsion x2 10705 | -3/Research | Loaded intel: 4 garrison access locations 10953 | -3/Research | Search patrols dispatched 11255 | -3/Research | Spotted B-86 Titan 11303 | -3/Research | Cargo convoy interrupted 11360 | -3/Research | Spotted Striker 11411 | -3/Research | Core integrity fell below 50% 11416 | -3/Research | System corruption reached 10% 11437 | -3/Research | Core integrity fell below 20% 11439 | -3/Research | Destroyed by H-77 Assassin with Coil Gun Last Messages --------------- 11429_ Slug penetrates Wall. 11432_ Research Mainframe disabled. 11432_ Antigrav Array destroyed. 11434_ Slug penetrates Wall. 11434_ Penetrated by Slug. 11434_ Quantum Rifle destroyed. 11434_ Faulty Adv. Gravity Neutralizer destroyed. 11435_ Striker Lgt. Quantum Reactor severed. 11435_ Slug penetrates Wall. 11435_ Penetrated by Slug. 11435_ Slug penetrates Wall. 11436_ U-05 Engineer builds a Wall. 11438_ System corrupted: Component data lost. 11438_ Slug penetrates Wall. 11439_ G-67 Veteran destroyed. 11439_ Slug penetrates Wall. 11439_ Penetrated by Slug. 11439_ Slug penetrates Wall. [Achievement: Achiever] Map ----- +----------------------------------------------------+ | ???????????????????? | | ???????????????????? | | ???????????????????? | | ]]] ???????????????????? | | ####### ]]] ????????????????????? | | ## ] " ]] ????????????????????? | | ## "%" ?????????????????????? | | ## ###""########### ?????????????????????? | | # # #???????????????????????????? | | #T # ^ #???????????????????????????? | | ## # #???????????????????????????? | | ## # |! #???????????????????????????? | | ## ####/##########???????????????????????? | | ## %%### %" #???????????????????????? | | ##+#### " #???????????????????????? | | ?# #??# ### %!# #???????????????????????? | | ?# #??# #?#############???????????????????????? | | ?# #??# #?????????????????????????????????????? | | ?# #??## ##????????????###########??????????????? | | ?# #???# #?????????????# """" #????#?????????? | | ?# #???# ##????????????# ] """" #?? #?????????? | | ?# ##### ##????????????# """" # #?????????? | | ?# #?????????????# """ p/ #?????????? | | ?# #?????????????# #?? #?????????? | | ?# #???????????# # p #? #?????????? | | ?# = ##???????????#;@=p #? #?????????? | | ?# = ##???????????##%K p # #?????????? | | ## = #######+#############h### #?????????? | | ! +?????????? | | !!!%* #?????????? | | =!]! ##????????? | | !]%!! *%= ?? | | #"###########+#############+##### ########???? | | =*# """"" # ! #?# |#??#??????????? | | %]#! ""R"" # ### #?????????????? | | =*/= " " # / + = #?????????????? | | /# # "## ! #?????????????? | | # # ### #?????????????? | | # # #?# ]] #?????????????? | | ##### # #?# ]] #?????????????? | | ????# # #?# ] #?????????????? | | ????########### #?###########?????????????? | | ??????????????##########?????????????????????????? | | ?????????????????????????????????????????????????? | | ?????????????????????????????????????????????????? | | ?????????????????????????????????????????????????? | | ??????????????????????????# ???????????????? | | ??????????????????????????# ???????????????? | | ??????????????????????????# ???????????????? | | ??????????????????????????# """ ???????????????? | +----------------------------------------------------+ Best States ------------- Heat Dissipation 86 Energy Generation 46 Energy Capacity 525 Matter Stores 300 Matter Capacity 300 Sight Range 20 Robot Scan Range 16 Terrain Scan Range 16 Terrain Scan Density 10 ECM Strength 2 Jamming Range 16 Power Amplification 30 Additional Mass Support 6 Corruption Containment 12 Armor Coverage 225 Resistance: TH 25 Core Shielding 40 Power Shielding 66 Propulsion Shielding 33 Point Defense Rating 160 Weapon Cycling 15 Phase Shifting 10 Evasion (%) 64 Targeting Accuracy 8 Target Analysis 6 Core Analysis 6 Recoil Reduction 5 Offensive Hacking 14 Defensive Hacking 14 Item Schematics ----------------- Assault Drone Bay | -4/Zhirov | Free Exp. Heat Sink | -4/Zhirov | Free Exp. Optical Array | -4/Zhirov | Free Imp. Arc Thrower | -4/Zhirov | Free Robot Schematics ------------------ None Fabricated ------------ Nothing Alien Tech Used ----------------- Transdimensional Reconstructor Integrated Dissipator Achievements -------------- Achiever Alien Tech Armchair Analyst Backstab Dangerous Findings Party Time Subspace Traveler The Science Guy Challenges ------------ None Game ------ Seed SurgeHardlightCannon Manual? 0 Play Time 03:51:23 Cumulative 32.7 hours Start 2024.11.11 @ 17:36:47 End 2024.11.11 @ 23:42:45 Sessions 1 Manual Loads 0 Difficulty Rogue Special Mode None Game No. 20 Rogue 20 Adventurer 0 Explorer 0 Win Type - Total 0 Types 0/0/0/0/0/0/0/0/0 Lore% 14 Gallery% 30 Achievement% 26 Wizard Run 0 Options --------- Layout 1 ASCII 0 Keyboard 0 Movement Mouse Keybinds 0 Fullscreen 1 Font 24/Terminus Map View 50x35 Zoom Use 0% Tactical HUD 1 Map Filters NONE Filters NONE Steam 1 RUN: b4bbb2c0-57f0-43cb-8e47-95bfb589325e